bitfinex-derivatives/quotes_SOLF0:USTF0_20251202
["timestamp","ask_amount","ask_price","bid_price","bid_amount"]
[1764716833368,2.99,139.68,139.62,3.12]
[1764716834371,0.05097571,139.66,139.64,3.17205939]
[1764716834572,0.05097571,139.66,139.64,9.61515939]
[1764716836367,0.05097571,139.66,139.64,3.17205939]
[1764716836568,3.04097571,139.66,139.64,0.05205939]
[1764716836875,0.05097571,139.66,139.64,3.17205939]
[1764716837970,3.04097571,139.66,139.64,0.05205939]
[1764716838563,3.04097571,139.66,139.64,3.17205939]
[1764716839568,5.61712933,139.65,139.64,0.05205939]
[1764716839769,2.99,139.64,139.6,3.12]
[1764716839974,2.99,139.63,139.6,3.12]
[1764716840877,3.04318558,139.63,139.6,3.17304849]
[1764716841376,5.67031491,139.63,139.6,0.05304849]
[1764716841571,2.99,139.62,139.6,0.05304849]
[1764716841975,3.04318558,139.63,139.6,3.17304849]
[1764716843475,2.99,139.62,139.6,0.05304849]
[1764716845069,2.99,139.51,139.42,3.12]
[1764716845273,5.61712933,139.47,139.42,3.12]
[1764716845679,5.61712933,139.45,139.39,3.12]
[1764716845872,61.76,139.44,139.39,3.12]
[1764716846073,0.04820651,139.43,139.41,3.12]
[1764716847575,0.04820651,139.43,139.4,3.16688872]
[1764716848477,61.80820651,139.43,139.4,3.16688872]
[1764716848879,64.79820651,139.43,139.4,3.16688872]
[1764716849183,64.79820651,139.43,139.35,6.4565]
[1764716849373,64.75,139.43,139.35,6.4565]
[1764716849574,2.99,139.43,139.36,100.4303]
[1764716849783,61.78,139.42,139.36,100.4303]
[1764716850083,0.04951377,139.4,139.38,0.03302987]
[1764716851078,0.04951377,139.4,139.39,2.34]
[1764716851583,61.8,139.43,139.4,2.34]
[1764716852681,61.85187615,139.43,139.4,2.3877227]
[1764716853076,0.05187615,139.43,139.4,2.3877227]
[1764716853272,61.85187615,139.43,139.4,2.3877227]
[1764716853885,0.05187615,139.43,139.4,2.3877227]
[1764716855876,0.05187615,139.43,139.4,8.8418227]
[1764716856077,0.05187615,139.43,139.41,2.34]
[1764716856677,3.04187615,139.43,139.4,6.5018227]
[1764716856881,3.04187615,139.43,139.4,0.0477227]
[1764716857185,3.04187615,139.43,139.4,2.3877227]
[1764716857584,0.05187615,139.43,139.4,2.3877227]
[1764716858185,0.05187615,139.43,139.42,2.34]
[1764716858680,21.61535556,139.47,139.44,2.34]
[1764716858882,61.82,139.48,139.44,2.34]
[1764716859081,83.25965701,139.48,139.44,2.34]
[1764716859478,0.05223329,139.47,139.45,0.05053967]
[1764716859682,0.05223329,139.47,139.45,2.39053967]
[1764716859977,0.05223329,139.47,139.46,6.4514]
[1764716860184,0.05223329,139.47,139.46,8.7914]
[1764716860383,0.05223329,139.47,139.46,6.4514]
[1764716861485,0.05223329,139.47,139.46,2.34]
[1764716862085,20.96099859,139.48,139.46,2.34]
[1764716862277,2.98,139.5,139.46,2.34]
[1764716863084,3.0343327,139.49,139.46,2.34]
[1764716863283,3.0343327,139.49,139.46,8.7915]
[1764716863684,24.07262898,139.49,139.46,8.7915]
[1764716863891,3.0343327,139.49,139.46,8.7915]
[1764716864785,3.0343327,139.49,139.45,2.39053967]
[1764716865791,3.0343327,139.49,139.46,8.7915]
[1764716865992,3.0343327,139.49,139.46,2.34]
[1764716866492,24.7024666,139.49,139.46,2.34]
[1764716866791,0.0543327,139.49,139.46,2.34]
[1764716866987,0.0543327,139.49,139.48,2.34]
[1764716873291,2.98,139.56,139.52,2.34]
[1764716873593,2.98,139.55,139.52,2.34]
[1764716874197,3.03309015,139.55,139.52,2.39160579]
[1764716874498,24.2965269,139.55,139.52,2.39160579]
[1764716874697,3.03309015,139.55,139.52,2.39160579]
[1764716878093,3.03309015,139.55,139.52,8.84040579]
[1764716878501,3.03309015,139.55,139.52,2.39160579]
[1764716878800,25.012113,139.55,139.52,0.05160579]
[1764716878999,2.98,139.54,139.52,0.05160579]
[1764716880600,7.09501555,139.54,139.46,102.6956]
[1764716880800,2.98,139.52,139.46,2.34]
[1764716880994,2.98,139.51,139.46,2.34]
[1764716881300,2.98,139.53,139.49,2.34]
[1764716881502,64.74,139.52,139.49,2.34]
[1764716881702,64.79109805,139.52,139.49,2.38664614]
[1764716882505,69.58453825,139.52,139.49,2.38664614]
[1764716882804,64.79109805,139.52,139.5,6.4497]
[1764716883197,69.58453825,139.52,139.5,6.4497]
[1764716883396,64.79109805,139.52,139.5,6.4497]
[1764716883902,69.58453825,139.52,139.5,6.4497]
[1764716884205,3.03109805,139.52,139.5,8.7897]
[1764716884400,7.82453825,139.52,139.5,8.7897]
[1764716885207,4.7934402,139.51,139.5,6.4497]
[1764716885906,2.98,139.5,139.49,0.04664614]
[1764716886095,7.7734402,139.5,139.49,0.04664614]
[1764716887007,2.98,139.49,139.45,2.34]
[1764716887206,2.98,139.47,139.42,2.34]
[1764716887409,7.7734402,139.46,139.42,2.34]
[1764716887708,7.7734402,139.46,139.44,6.4524]
[1764716888101,4.7934402,139.45,139.44,0.04863787]
[1764716888408,7.7734402,139.45,139.44,0.04863787]
[1764716889307,4.7934402,139.45,139.44,2.39863787]
[1764716889810,7.8434402,139.45,139.44,0.04863787]
[1764716890913,4.7934402,139.45,139.44,0.04863787]
[1764716892006,3.05,139.44,139.41,2.35]
[1764716892211,4.7934402,139.43,139.38,2.35]
[1764716892511,4.7934402,139.42,139.38,2.35]
[1764716892711,4.7934402,139.41,139.4,8.804]
[1764716893110,0.05030912,139.42,139.4,8.804]
[1764716893307,4.89441247,139.41,139.4,8.804]
[1764716896318,0.05030912,139.42,139.4,8.804]
[1764716896517,4.94472159,139.42,139.4,8.804]
[1764716896815,0.05030912,139.42,139.41,2.35]
[1764716897319,8.122e-05,139.46,139.44,2.35]
[1764716897523,9.71444503,139.5,139.44,2.35]
[1764716898220,0.05090357,139.48,139.46,0.04542403]
[1764716898721,0.05090357,139.48,139.47,6.451]
[1764716899108,3.10090357,139.48,139.47,6.451]
[1764716902630,9.7653486,139.48,139.47,6.451]
[1764716904126,64.77,139.5,139.47,2.35]
[1764716904624,64.77,139.5,139.46,100.40332403]
[1764716904625,3.05,139.49,139.48,6.4507]
[1764716906119,3.05,139.49,139.46,6.49662403]
[1764716906327,3.05,139.49,139.46,0.04542403]
[1764716907416,64.80206859,139.5,139.46,2.39542403]
[1764716908728,64.80206859,139.5,139.49,6.4502]
[1764716909117,0.05206859,139.5,139.49,8.8002]
[1764716910325,0.05206859,139.5,139.49,6.4502]
[1764716910525,4.89064362,139.5,139.49,6.4502]
[1764716910728,0.05206859,139.5,139.49,6.4502]
[1764716911218,4.89064362,139.5,139.49,8.8002]
[1764716911418,0.05206859,139.5,139.49,8.8002]
[1764716911824,4.89064362,139.5,139.49,8.8002]
[1764716912025,0.05206859,139.5,139.49,8.8002]
[1764716912227,3.10206859,139.5,139.46,2.39542403]
[1764716912427,3.05,139.48,139.46,0.04542403]
[1764716912739,4.83857503,139.47,139.46,2.39542403]
[1764716913030,7.88857503,139.49,139.47,6.451]
[1764716913223,4.83857503,139.48,139.47,6.451]
[1764716917628,7.88857503,139.48,139.47,6.451]
[1764716917831,3.05,139.48,139.47,6.451]
[1764716918023,7.88857503,139.48,139.47,6.451]
[1764716918223,3.05,139.48,139.47,6.451]
[1764716918423,7.88857503,139.48,139.47,6.451]
[1764716918820,3.05,139.48,139.47,6.451]
[1764716919019,7.88857503,139.48,139.47,6.451]
[1764716919627,7.503e-05,139.48,139.47,8.791]
[1764716919834,3.08,139.49,139.46,0.04542403]
[1764716920920,3.08,139.49,139.48,6.4507]
[1764716921131,3.08,139.49,139.46,0.04542403]
[1764716921933,3.08,139.49,139.48,6.4507]
[1764716923934,12.04178606,139.5,139.49,6.4502]
[1764716924235,64.79206859,139.5,139.49,6.4502]
[1764716924833,3.08,139.49,139.46,2.38542403]
[1764716925836,3.08,139.49,139.48,6.4507]
[1764716930638,11.98971747,139.49,139.46,8.83692403]
[1764716930934,11.98971747,139.49,139.46,2.38542403]
[1764716931130,3.08,139.49,139.46,2.38542403]
[1764716931735,4.69966482,139.48,139.46,2.38542403]
[1764716932037,4.69966482,139.47,139.46,8.83702403]
[1764716932735,3.08,139.49,139.48,6.4507]
[1764716933039,7.77931122,139.49,139.48,6.4507]
[1764716934135,4.69931122,139.49,139.48,6.4507]
[1764716938636,4.69931122,139.49,139.48,8.7907]
[1764716939536,6.422e-05,139.52,139.5,2.34]
[1764716939742,64.66,139.54,139.5,2.34]
[1764716940441,3.08,139.53,139.5,2.34]
[1764716940642,3.12641978,139.53,139.52,6.4486]
[1764716941532,0.04641978,139.53,139.52,6.4486]
[1764716942342,0.04641978,139.53,139.52,8.7886]
[1764716944754,1.24769195,139.59,139.57,8.7365]
[1764716944947,3.08,139.6,139.57,2.29]
[1764716945952,3.12540452,139.6,139.57,8.78923595]
[1764716946751,3.12540452,139.6,139.58,8.736]
[1764716946957,25.1352217,139.6,139.58,8.736]
[1764716947157,3.12540452,139.6,139.58,8.736]
[1764716947347,3.12540452,139.6,139.58,6.446]
[1764716947544,0.04540452,139.6,139.59,2.29]
[1764716951455,3.26,139.65,139.63,2.24]
[1764716951650,3.26,139.63,139.58,2.24]
[1764716952654,0.05151187,139.62,139.59,2.28679874]
[1764716953156,0.05151187,139.62,139.6,2.24]
[1764716955158,5.94536367,139.62,139.59,0.04679874]
[1764716955358,3.26,139.61,139.59,0.04679874]
[1764716956656,5.8938518,139.61,139.59,0.04679874]
[1764716956865,3.26,139.6,139.59,0.04679874]
[1764716963560,3.26,139.6,139.52,105.1838518]
[1764716963766,3.26,139.58,139.55,6.4474]
[1764716963968,64.78,139.57,139.55,6.4474]
[1764716964774,64.83007265,139.57,139.55,6.49489908]
[1764716965067,3.26,139.56,139.55,0.04749908]
[1764716965570,3.26,139.56,139.51,8.7389]
[1764716965775,3.26,139.54,139.51,8.7389]
[1764716966667,3.30858879,139.54,139.51,8.79108101]
[1764716966977,0.04858879,139.54,139.52,8.7388]
[1764716967668,0.04858879,139.54,139.53,2.29]
[1764716970776,0.04858879,139.54,139.53,8.7384]
[1764716972974,0.04858879,139.54,139.53,6.4484]
[1764716973173,3.30858879,139.54,139.51,0.05218101]
[1764716974180,3.26,139.52,139.51,0.05218101]
[1764716974880,61.52,139.53,139.51,6.50148101]
[1764716975182,61.52,139.53,139.51,0.05218101]
[1764716975476,61.52,139.53,139.52,6.4488]
[1764716975682,64.78,139.53,139.51,0.05218101]
[1764716976176,3.26,139.53,139.52,6.4488]
[1764716976576,0.04858879,139.54,139.53,6.4484]
[1764716978884,0.04858879,139.54,139.53,8.7484]
[1764716979884,0.04858879,139.54,139.53,6.4484]
[1764716982386,3.06858879,139.54,139.51,8.80108101]
[1764716982889,3.02,139.53,139.51,8.80108101]
[1764716983785,3.02,139.53,139.52,6.4488]
[1764716985291,6.69176211,139.54,139.53,8.7484]
[1764716985483,0.04858879,139.54,139.53,8.7484]
[1764716999806,6.211e-05,139.55,139.54,8.7479]
[1764717000401,73.40739346,139.57,139.54,2.3]
[1764717000798,73.46185208,139.57,139.56,6.447]
[1764717001406,3.02,139.56,139.55,6.4474]
[1764717002602,3.02,139.55,139.51,2.3]
[1764717002805,3.02,139.54,139.51,2.3]
[1764717003307,3.02,139.54,139.52,6.4486]
[1764717003603,3.07122843,139.54,139.52,6.49638561]
[1764717004701,3.07122843,139.54,139.53,6.4484]
[1764717005510,3.07122843,139.54,139.52,0.04778561]
[1764717005810,3.02,139.53,139.52,0.04778561]
[1764717006913,3.02,139.53,139.48,6.4506]
[1764717007103,3.02,139.51,139.48,6.4506]
[1764717007307,3.02,139.5,139.48,6.4506]
[1764717008007,3.06590168,139.5,139.48,6.50068649]
[1764717010615,0.04590168,139.5,139.49,2.3]
[1764717012913,0.04590168,139.5,139.49,8.7502]
[1764717018328,0.04590168,139.5,139.49,6.4502]
[1764717018515,0.04590168,139.5,139.49,8.7502]
[1764717036234,0.04590168,139.5,139.49,6.4502]
[1764717037739,0.04590168,139.5,139.49,8.7502]
[1764717040244,3.09590168,139.5,139.48,6.50078649]
[1764717040437,3.09590168,139.5,139.48,0.05008649]
[1764717040741,3.05,139.48,139.45,6.452]
[1764717040944,3.05,139.46,139.42,2.31]
[1764717041443,3.05,139.46,139.43,6.4525]
[1764717041634,3.10337295,139.45,139.43,6.49996466]
[1764717042246,0.05337295,139.45,139.44,2.31]
[1764717042539,22.2597023,139.57,139.44,2.31]
[1764717042540,8.93580452,139.49,139.46,2.31]
[1764717042840,61.52,139.51,139.47,2.31]
[1764717043029,70.45580452,139.52,139.47,2.31]
[1764717043232,11.98580452,139.53,139.51,6.4492]
[1764717043438,3.05,139.52,139.49,2.31]
[1764717043739,3.05,139.51,139.49,2.36451023]
[1764717043934,3.05,139.51,139.49,8.81471023]
[1764717044130,0.04589429,139.52,139.49,2.36451023]
[1764717045643,0.04589429,139.52,139.5,8.7596]
[1764717047245,0.04589429,139.52,139.51,2.31]
[1764717047947,0.04589429,139.52,139.51,8.7593]
[1764717048638,0.04589429,139.52,139.51,6.4493]
[1764717050542,0.04589429,139.52,139.51,8.7593]
[1764717052242,3.09589429,139.52,139.51,6.4493]
[1764717052447,3.09589429,139.52,139.49,2.36451023]
[1764717053640,3.09589429,139.52,139.5,6.4497]
[1764717054043,3.05,139.51,139.49,0.05451023]
[1764717054244,3.05,139.51,139.49,6.50461023]
[1764717054442,3.05,139.51,139.49,8.81461023]
[1764717056341,3.09589429,139.52,139.49,8.81461023]
[1764717056541,3.09589429,139.52,139.5,6.4497]
[1764717056743,3.09589429,139.52,139.5,8.7597]
[1764717056941,0.04589429,139.52,139.5,2.31]
[1764717057142,61.56589429,139.52,139.5,2.31]
[1764717057642,0.04589429,139.52,139.51,8.7593]
[1764717058847,3.09589429,139.52,139.49,8.81431023]
[1764717059349,3.09589429,139.52,139.5,6.4497]
[1764717060751,12.03169881,139.52,139.5,6.4497]
[1764717061447,3.09589429,139.52,139.5,6.4497]
[1764717061651,12.03169881,139.52,139.5,6.4497]
[1764717063051,73.55169881,139.52,139.5,6.4497]
[1764717064356,3.05,139.5,139.45,2.31]
[1764717064547,5.6825443,139.48,139.45,2.31]
[1764717064947,3.05,139.47,139.43,2.31]
[1764717065149,0.05036285,139.46,139.44,0.04678998]
[1764717065358,0.05036285,139.46,139.44,2.35678998]
[1764717065759,0.05036285,139.46,139.45,8.7621]
[1764717066355,4.76071161,139.46,139.45,8.7621]
[1764717067050,7.81071161,139.46,139.44,0.04678998]
[1764717067256,4.71034876,139.45,139.44,0.04678998]
[1764717067556,7.76034876,139.45,139.44,0.04678998]
[1764717069450,4.71034876,139.45,139.44,2.35678998]
[1764717071655,7.79034876,139.45,139.44,0.04678998]
[1764717072959,4.71034876,139.45,139.44,0.04678998]
[1764717073556,7.79034876,139.45,139.44,0.04678998]
[1764717074358,28.98304577,139.45,139.44,0.04678998]
[1764717074557,7.79034876,139.45,139.44,0.04678998]
[1764717074752,10.42289306,139.45,139.44,0.04678998]
[1764717074954,3.08,139.44,139.41,6.4535]
[1764717075156,7.79034876,139.43,139.41,6.4535]
[1764717075463,4.71034876,139.44,139.43,8.763]
[1764717075754,61.54,139.44,139.43,8.763]
[1764717075959,66.25034876,139.44,139.43,6.453]
[1764717076659,4.71034876,139.44,139.43,8.763]
[1764717076852,0.05229887,139.45,139.44,8.7625]
[1764717077054,4.76264763,139.45,139.44,8.7625]
[1764717077461,0.05229887,139.45,139.44,8.7625]
[1764717077656,4.76264763,139.45,139.44,8.7625]
[1764717079054,0.05229887,139.45,139.44,8.7625]
[1764717083466,4.71034876,139.5,139.48,2.26]
[1764717083766,4.71034876,139.49,139.48,2.26]
[1764717083957,4.71034876,139.5,139.48,8.7107]
[1764717084157,4.71034876,139.49,139.48,8.7107]
[1764717090966,4.876e-05,139.49,139.48,8.7107]
[1764717091171,4.876e-05,139.49,139.47,0.05339174]
[1764717091172,0.0468476,139.5,139.49,8.7102]
[1764717093773,0.0468476,139.5,139.49,6.4502]
[1764717093774,3.1268476,139.5,139.49,6.4502]
[1764717094271,0.0468476,139.5,139.49,6.4502]
[1764717097373,0.0468476,139.5,139.49,8.7102]
[1764717112286,0.0468476,139.5,139.49,6.4502]
[1764717112491,3.1768476,139.5,139.49,6.4502]
[1764717113092,3.1768476,139.5,139.47,0.05339174]
[1764717113294,3.13,139.47,139.42,2.25]
[1764717113487,64.63,139.46,139.42,2.25]
[1764717113887,64.63,139.46,139.43,8.7025]
[1764717114282,3.13,139.45,139.43,8.75499372]
[1764717114988,3.13,139.45,139.44,6.4525]
[1764717115380,3.13,139.45,139.43,0.05249372]
[1764717117594,61.52,139.44,139.43,6.50539372]
[1764717117987,8.97899697,139.46,139.43,2.30249372]
[1764717118187,8.97899697,139.46,139.44,8.7025]
[1764717118188,61.52,139.45,139.44,8.7025]
[1764717118686,61.56824913,139.46,139.45,2.25]
[1764717120197,64.69824913,139.46,139.44,6.4525]
[1764717123698,64.69824913,139.46,139.43,0.05249372]
[1764717123699,3.13,139.45,139.43,0.05249372]
[1764717125694,3.13,139.45,139.43,6.50539372]
[1764717126507,4.68354725,139.44,139.43,6.50539372]
[1764717126704,4.68354725,139.44,139.43,8.75539372]
[1764717126902,4.68354725,139.45,139.44,2.25]
[1764717129907,4.68354725,139.45,139.44,8.7025]
[1764717130310,0.04824913,139.46,139.45,8.7021]
[1764717130505,4.73179638,139.46,139.45,8.7021]
[1764717130712,0.04824913,139.46,139.45,8.7021]
[1764717131013,4.73179638,139.46,139.45,8.7021]
[1764717131413,0.04824913,139.46,139.45,8.7021]
[1764717131612,4.73179638,139.46,139.45,8.7021]
[1764717131812,0.04824913,139.46,139.45,8.7021]
[1764717132009,9.638e-05,139.46,139.45,8.7021]
[1764717132206,61.52,139.49,139.47,8.7008]
[1764717132407,64.71,139.49,139.47,8.7008]
[1764717133108,64.76003544,139.49,139.47,8.75228399]
[1764717134217,3.24003544,139.49,139.47,8.75228399]
[1764717134717,3.24003544,139.49,139.47,0.05148399]
[1764717135619,3.19,139.48,139.47,0.05148399]
[1764717137110,64.71,139.48,139.47,0.05148399]
[1764717141922,3.19,139.48,139.47,0.05148399]
[1764717142123,64.71,139.48,139.47,0.05148399]
[1764717144226,3.19,139.48,139.47,0.05148399]
[1764717144522,9.8781619,139.48,139.47,6.50258399]
[1764717144718,3.19,139.48,139.47,6.50258399]
[1764717144925,3.19,139.48,139.47,0.05148399]
[1764717145224,9.87809759,139.48,139.47,0.05148399]
[1764717145426,3.19,139.48,139.47,0.05148399]
[1764717145628,9.87886181,139.48,139.47,6.50258399]
[1764717145838,6.68886181,139.48,139.47,8.75258399]
[1764717146929,9.87886181,139.48,139.47,6.50258399]
[1764717148630,6.68886181,139.48,139.47,6.50258399]
[1764717150135,9.87886181,139.48,139.47,6.50258399]
[1764717152329,3.19,139.48,139.47,6.50258399]
[1764717152833,9.88341397,139.48,139.47,6.50258399]
[1764717154230,9.88341397,139.48,139.47,0.05148399]
[1764717154435,9.88341397,139.48,139.42,2.25]
[1764717154436,3.19,139.47,139.39,2.3]
[1764717154633,3.19,139.43,139.42,6.4533]
[1764717155030,9.67321836,139.44,139.4,2.31]
[1764717155342,6.69321836,139.45,139.44,8.7625]
[1764717156041,6.69321836,139.45,139.44,6.4525]
[1764717156446,14.35601448,139.45,139.44,6.4525]
[1764717156639,14.35880763,139.45,139.44,6.4525]
[1764717156940,7.66279612,139.45,139.44,6.4525]
[1764717157538,2.98,139.44,139.42,2.31]
[1764717157744,4.68279612,139.43,139.42,2.31]
[1764717158244,6.69779077,139.43,139.42,2.31]
[1764717158441,6.69779077,139.43,139.41,2.364391]
[1764717159637,6.69779077,139.43,139.42,6.4535]
[1764717160032,3.12,139.42,139.41,0.054391]
[1764717160234,6.69779077,139.42,139.41,2.364391]
[1764717160435,0.0501342,139.43,139.41,2.364391]
[1764717160744,0.05004343,139.43,139.41,2.364391]
[1764717161738,0.05004343,139.43,139.42,2.31]
[1764717161940,70.42429115,139.47,139.43,2.31]
[1764717162844,70.42429115,139.47,139.42,100.3851]
[1764717162845,0.04658189,139.46,139.45,2.31]
[1764717163244,8.67835818,139.5,139.46,2.26]
[1764717163441,64.62,139.52,139.46,2.26]
[1764717163844,3.12,139.51,139.48,6.4506]
[1764717164242,3.16918349,139.51,139.48,6.4966555]
[1764717166248,3.16918349,139.51,139.49,8.7099]
[1764717166450,0.04918349,139.51,139.49,8.7099]
[1764717167655,3.16918349,139.51,139.49,8.7099]
[1764717168053,0.04918349,139.51,139.49,8.7099]
[1764717168760,0.04918349,139.51,139.5,2.26]
[1764717176753,0.04918349,139.51,139.49,8.7099]
[1764717177453,3.16918349,139.51,139.49,6.4499]
[1764717180161,3.12,139.5,139.49,6.4499]
[1764717180460,3.12,139.5,139.48,0.0460555]
[1764717180861,5.75237106,139.49,139.48,0.0460555]
[1764717181264,3.12,139.49,139.48,0.0460555]
[1764717181453,64.6,139.49,139.48,0.0460555]
[1764717183765,61.48,139.49,139.48,2.3060555]
[1764717184066,5.75237106,139.49,139.48,0.0460555]
[1764717184266,67.23237106,139.49,139.48,0.0460555]
[1764717184666,5.75237106,139.49,139.48,0.0460555]
[1764717184867,67.23237106,139.49,139.48,0.0460555]
[1764717185367,5.75237106,139.49,139.48,0.0460555]
[1764717185563,67.23237106,139.49,139.48,0.0460555]
[1764717186367,5.75237106,139.49,139.48,0.0460555]
[1764717186575,64.6,139.49,139.48,0.0460555]
[1764717187471,67.23237106,139.49,139.48,0.0460555]
[1764717187679,3.12,139.48,139.42,2.26]
[1764717187871,3.12,139.46,139.42,2.26]
[1764717188479,3.12,139.46,139.44,6.4524]
[1764717188676,0.04597093,139.45,139.44,6.4524]
[1764717188877,3.20597093,139.45,139.44,6.4524]
[1764717189577,0.04597093,139.45,139.44,6.4524]
[1764717189779,3.20597093,139.45,139.44,6.4524]
[1764717190465,0.04597093,139.45,139.44,6.4524]
[1764717190673,3.20597093,139.45,139.44,6.4524]
[1764717191176,3.20597093,139.45,139.43,0.04833956]
[1764717191177,3.16,139.44,139.43,0.04833956]
[1764717191871,5.83834199,139.45,139.43,2.34833956]
[1764717192581,5.83834199,139.45,139.43,8.80133956]
[1764717192582,3.20597093,139.45,139.43,8.80133956]
[1764717192769,0.04597093,139.45,139.44,2.3]
[1764717193480,0.04597093,139.45,139.44,8.7525]
[1764717194379,0.04597093,139.45,139.44,6.4525]
[1764717194584,3.20597093,139.45,139.44,6.4525]
[1764717194982,0.04597093,139.45,139.44,6.4525]
[1764717196184,3.20597093,139.45,139.44,6.4525]
[1764717196777,5.83834199,139.45,139.43,0.04833956]
[1764717196972,3.16,139.44,139.43,0.04833956]
[1764717199582,64.66,139.44,139.43,0.04833956]
[1764717201584,3.16,139.44,139.43,6.50133956]
[1764717201789,0.04597093,139.45,139.43,2.34833956]
[1764717202475,0.04597093,139.45,139.44,6.4525]
[1764717203690,0.04597093,139.45,139.44,8.7525]
[1764717208881,3.20597093,139.45,139.43,0.04833956]
[1764717209583,3.20597093,139.45,139.43,2.34833956]
[1764717210388,0.04597093,139.45,139.43,2.34833956]
[1764717210586,0.04597093,139.45,139.43,8.80133956]
[1764717214192,0.04597093,139.45,139.44,8.7525]
[1764717220792,0.04597093,139.45,139.44,2.3]
[1764717220994,0.04597093,139.45,139.43,0.04833956]
[1764717220995,5.79834199,139.45,139.43,0.04833956]
[1764717221190,3.12,139.44,139.43,0.04833956]
[1764717221389,3.12,139.43,139.39,8.7644]
[1764717221590,3.12,139.41,139.39,8.7644]
[1764717222301,3.17122116,139.41,139.39,8.81391012]
[1764717223701,0.05122116,139.41,139.4,2.31]
[1764717226495,0.05122116,139.41,139.4,8.7644]
[1764717239102,3.17122116,139.41,139.36,2.31]
[1764717239402,3.12,139.4,139.36,2.31]
[1764717239605,3.12,139.39,139.36,2.31]
[1764717240208,3.12,139.39,139.36,2.35679938]
[1764717240409,3.12,139.39,139.37,8.7657]
[1764717241810,3.12,139.39,139.36,2.35679938]
[1764717243416,3.12,139.39,139.36,8.81299938]
[1764717243716,73.5217384,139.4,139.37,2.31]
[1764717243906,64.62,139.4,139.37,2.31]
[1764717244306,3.12,139.4,139.38,2.31]
[1764717244509,73.57295956,139.41,139.38,2.31]
[1764717244810,64.67122116,139.41,139.38,2.31]
[1764717245002,64.67122116,139.41,139.39,8.7646]
[1764717245603,3.17122116,139.41,139.39,8.7646]
[1764717246517,4.66915593,139.4,139.39,8.7646]
[1764717249313,7.75915593,139.4,139.39,6.4546]
[1764717251819,4.66915593,139.4,139.39,8.7546]
[1764717257122,4.66915593,139.4,139.38,2.3]
[1764717257323,4.66915593,139.39,139.38,2.3]
[1764717258626,4.67181302,139.39,139.38,6.4551]
[1764717259213,4.67181302,139.39,139.38,8.7551]
[1764717262821,11.374954,139.39,139.38,8.7551]
[1764717264333,4.67181302,139.39,139.38,8.7551]
[1764717264530,1.302e-05,139.39,139.38,8.7551]
[1764717265025,6.70314098,139.4,139.39,2.3]
[1764717269831,6.70314098,139.4,139.39,8.7548]
[1764717278338,8.95295956,139.41,139.4,6.4544]
[1764717279342,12.24295956,139.41,139.4,6.4544]
[1764717280338,3.29,139.4,139.39,0.04598434]
[1764717280640,12.1917384,139.4,139.39,0.04598434]
[1764717282442,12.1917384,139.4,139.39,6.50078434]
[1764717282838,12.1917384,139.4,139.39,0.04598434]
[1764717283542,3.29,139.4,139.39,0.04598434]
[1764717286644,16.6545762,139.4,139.39,0.04598434]
[1764717287036,3.29,139.4,139.39,0.04598434]
[1764717287236,16.6545762,139.4,139.39,0.04598434]
[1764717288642,3.29,139.4,139.39,0.04598434]
[1764717290543,16.6545762,139.4,139.39,0.04598434]
[1764717290747,3.29,139.4,139.39,0.04598434]
[1764717291147,16.6545762,139.4,139.39,0.04598434]
[1764717291348,3.29,139.4,139.39,0.04598434]
[1764717292345,19.29301387,139.4,139.39,0.04598434]
[1764717293051,5.92843767,139.4,139.39,0.04598434]
[1764717293249,5.92843767,139.4,139.36,6.4559]
[1764717293250,3.29,139.39,139.36,6.4559]
[1764717293548,3.29,139.37,139.36,6.4559]
[1764717295157,3.29,139.36,139.34,8.7567]
[1764717295346,10.00013851,139.35,139.34,8.7567]
[1764717295546,10.00013851,139.35,139.34,6.4567]
[1764717299153,3.29,139.35,139.34,6.4567]
[1764717299653,3.29,139.34,139.3,2.3]
[1764717299850,3.29,139.31,139.28,2.3]
[1764717300052,9.9930026,139.31,139.28,2.3]